Cogmind - Beta 15 @@@ ROGUE MODE // 2025.06.10 @ 19:33:50 Player: Demo Result: Destroyed by AG-91259 with Assembled Focal Cannon Performance ------------- Evolutions (1) 500 Regions Visited (5) 1000 Robots Destroyed (72) 360 Value Destroyed (1182) 1182 Prototype IDs (7) 140 Alien Tech Used (0) 0 Bonus (1732) 1732 TOTAL SCORE: 4914 Bonus ------- High Alert Combat Kills 23 Follower Combat Kills 109 Met Imprinter 300 Was Imprinted 300 Destroyed Z-Imprinter 1000 Cogmind --------- Core Integrity 0/400 Matter 196/300 Energy 274/280 System Corruption 0% Temperature Cool (77) Movement Core (500) Ox9 Location -7/Deep Caves Parts ------- > --- POWER (1) -------- Heavy Ion Engine > --- PROPULSION (2) --- (None) > --- UTILITY (4) ------ Large Storage Unit Experimental Target Analyzer Experimental Armor Integrity Analyzer > --- WEAPON (2) ------- Plasma Cutter > --- INVENTORY (15) --- High-capacity Matter Pod (200) Bomb Factory No. 2 Rocket Launcher Rocket Launcher Peak State ------------ > --- POWER ------------ Heavy Ion Engine > --- PROPULSION ------- Medium Treads Wheel > --- UTILITY ---------- Large Storage Unit Experimental Terrain Scan Processor Experimental Targeting Computer Experimental Armor Integrity Analyzer > --- WEAPON ----------- Shock Rifle Assault Cannon > --- INVENTORY -------- Wheel High-capacity Matter Pod Bomb Factory No. 2 Bore Cannon Rocket Launcher Rocket Launcher Rocket Launcher Improved Grenade Launcher Plasma Cutter Proton Bomb Trap Proton Bomb Trap Proton Bomb Trap Proton Bomb Trap Proton Bomb Trap [Rating: 42] Favorites ----------- Power Heavy Ion Engine Engine Heavy Ion Engine Power Core Light Nuclear Core Propulsion Wheel Treads Medium Treads Wheel Wheel Flight Unit Improved Flight Unit Utility Large Storage Unit Device High-powered Tractor Beam Storage Large Storage Unit Processor Targeting Computer Protection Light Armor Plating Weapon Assault Cannon Energy Gun Shock Rifle Ballistic Gun Assault Rifle Ballistic Cannon Assault Cannon Launcher Mini Grenade Launcher Special Weapon Plasma Cutter Build | -11 -10 -9 -9 -7 -7 ------- Run | Yrd Mat Mat Min Zio Dee Slots Evolved 2 | . . 2 . . . Power . | . . . . . . Propulsion . | . . . . . . Utility 2 | . . 2 . . . Weapon . | . . . . . . Parts Attached 43 | 8 2 16 5 10 2 Power 4 | 1 . 3 . . . Engine 3 | 1 . 2 . . . Core 1 | . . 1 . . . Reactor . | . . . . . . Propulsion 11 | 3 . 5 2 1 . Treads 2 | 1 . . . 1 . Leg . | . . . . . . Wheel 8 | 2 . 4 2 . . Hover . | . . . . . . Flight 1 | . . 1 . . . Utility 14 | 2 1 4 1 6 . Device 5 | 1 . 1 1 2 . Storage 2 | 1 1 . . . . Processor 6 | . . 2 . 4 . Hackware . | . . . . . . Protection 1 | . . 1 . . . Artifact . | . . . . . . Weapon 14 | 2 1 4 2 3 2 Energy Gun 2 | . 1 . . 1 . Energy Cannon . | . . . . . . Ballistic Gun 4 | 2 . 1 1 . . Ballistic Cannon 4 | . . 2 1 . 1 Launcher 3 | . . 1 . 1 1 Special Weapon 1 | . . . . 1 . Impact Weapon . | . . . . . . Slashing Weapon . | . . . . . . Piercing Weapon . | . . . . . . Special Melee Weapon . | . . . . . . Unidentified Prototypes 7 | . . 2 . 5 . Parts Lost 11 | . . 2 . . 9 Power 1 | . . 1 . . . Propulsion 3 | . . . . . 3 Utility 1 | . . . . . 1 Weapon 6 | . . 1 . . 5 Highest Loss Streak 5 | . . 1 . . 5 To Critical Strikes . | . . . . . . Average Backups 11 | 2 13 14 14 9 8 Power . | . . . . . . Propulsion 1 | 1 4 1 1 1 . Utility 4 | . 5 7 7 2 2 Weapon 4 | . 2 4 4 5 4 Tool/Special . | . . . . . . Unused Backups 19 | . 7 5 4 . 3 Power . | . . . . . . Propulsion 5 | . 3 2 . . . Utility 11 | . 4 2 4 . 1 Weapon 3 | . . 1 . . 2 Tool/Special . | . . . . . . Average Slot Usage (%) 98 | . 100 98 100 99 92 Engine 10 | . 14 7 11 11 11 Treads 7 | . 14 8 . 8 9 Wheel 14 | . 14 13 22 13 10 Device 14 | . 14 12 9 18 9 Storage 11 | . 14 11 11 11 11 Processor 15 | . . 14 22 14 22 Protection 1 | . . 6 1 . . Energy Gun 4 | . 7 4 . 7 . Ballistic Gun 3 | . 21 2 3 1 . Ballistic Cannon 11 | . . 14 17 11 9 Launcher 1 | . . . . . 7 Peak Build Rating 42 | 8 8 20 18 42 40 Average Rating 21 | 5 7 17 17 24 37 On Entrance 14 | . 7 8 18 16 39 Naked Turns . | . . . . . . Heaviest Build 66 | 15 30 42 41 66 40 Greatest Support 26 | 16 10 20 26 26 10 Greatest Overweight (x) 6 | 1 2 4 2 6 3 Average Overweight (x) 2 | . 1 2 1 2 2 Largest Inventory Capacity 15 | 8 15 15 15 15 15 Average Capacity 14 | 7 14 15 15 15 15 Most Carried 15 | 8 15 15 15 15 15 Average Carried 14 | 2 13 14 14 14 13 Final Capacity 15 | 8 15 15 15 15 15 Final Carried 15 | 7 15 15 15 15 5 Class Distribution -------------------- 100% | Mutant Dominant Class ---------------- Mutant | -10/Materials Mutant | -9/Materials Mutant | -9/Mines Mutant | -7/Zion Mutant | -7/Deep Caves Resources | -11 -10 -9 -9 -7 -7 ----------- Run | Yrd Mat Mat Min Zio Dee Matter Collected 2006 | 266 196 878 379 169 118 Remotely 1005 | . . 759 . 128 118 Salvage Created 1761 | 184 360 903 245 . 69 Parts 128 | 16 18 57 32 . 5 Haulers Intercepted 3 | . 2 1 . . . Recyclers Shooed 2 | . . 2 . . . Parts Field Recycled . | . . . . . . Retrieved Matter . | . . . . . . Parts Self-Destructed . | . . . . . . Prevented . | . . . . . . Kills | -11 -10 -9 -9 -7 -7 ------- Run | Yrd Mat Mat Min Zio Dee Combat Hostiles Destroyed 45 | . 3 28 11 . 3 Guns 6 | . 3 3 . . . Cannons 16 | . . 11 4 . 1 AOE 22 | . . 13 7 . 2 Classes Destroyed 10 | 2 3 3 1 . 1 Worker 8 | . . 6 2 . . Builder 3 | . . . 3 . . Tunneler 9 | 5 . 1 3 . . Hauler 3 | . 2 1 . . . Recycler 5 | 1 1 2 1 . . Watcher 1 | . 1 . . . . Swarmer 21 | . . 11 10 . . Grunt 15 | . 3 11 1 . . Sentry 6 | . . 6 . . . Assembled 2 | . . . . . 2 Best Kill Streak 8 | 4 2 8 4 . 2 Combat Bots Only 7 | . 2 7 4 . 2 Max Kills in Single Turn 5 | 1 1 5 4 . 2 Gunslinging . | . . . . . . Exploded 4 | . . 3 4 . 2 Melee . | . . . . . . Uniques/NPCs Destroyed 1 | . . . . . 1 Z-Imprinter (-7/Deep Caves) Combat | -11 -10 -9 -9 -7 -7 -------- Run | Yrd Mat Mat Min Zio Dee Hostile Shots Fired 144 | . 17 79 18 . 30 Missed 48 | . 8 25 10 . 5 Hits 96 | . 9 54 8 . 25 Projectile 96 | . 9 54 8 . 25 Critical Strikes 2 | . . 2 . . . Damage Taken 2068 | . 99 713 89 . 1167 Core 454 | . . 122 . . 332 Absorbed by Shields . | . . . . . . Core Remaining (%) 100 | 100 100 . . . . Volleys Fired 148 | 13 21 71 28 . 15 Largest 2 | 2 2 2 2 . 2 Hottest 81 | 40 60 77 74 . 81 Shots Fired 271 | 26 42 131 54 . 18 Gun 118 | 26 42 42 8 . . Cannon 134 | . . 78 44 . 12 Launcher 19 | . . 11 2 . 6 Special . | . . . . . . Kinetic 211 | 26 30 91 52 . 12 Thermal . | . . . . . . Explosive 19 | . . 11 2 . 6 Electromagnetic 41 | . 12 29 . . . Robot Hit Streak 14 | 4 9 14 8 . 9 Robot Miss Streak 5 | 1 4 4 5 . 3 Penetration Max . | . . . . . . Secondary Targets . | . . . . . . Shots Hit Robots 162 | 14 25 87 29 . 7 Core Hits 93 | 7 11 50 20 . 5 Critical Kills 1 | . 1 . . . . Critical Parts Destroyed 4 | . . . . . 4 Critical Strikes 12 | . 1 6 . . 5 Destroy 5 | . 1 . . . 4 Blast 6 | . . 5 . . 1 Corrupt 1 | . . 1 . . . Melee Attacks . | . . . . . . Impact . | . . . . . . Slashing . | . . . . . . Piercing . | . . . . . . Sneak Attacks . | . . . . . . Combat Hostiles . | . . . . . . Follow-up Attacks . | . . . . . . Damage Inflicted 4569 | 192 343 2648 965 . 421 Guns 989 | 192 343 392 62 . . Cannons 1912 | . . 1237 560 . 115 Explosions 1668 | . . 1019 343 . 306 Melee . | . . . . . . Ramming . | . . . . . . Kinetic 2537 | 192 227 1381 622 . 115 Thermal . | . . . . . . Explosive 1668 | . . 1019 343 . 306 Electromagnetic 364 | . 116 248 . . . Impact . | . . . . . . Slashing . | . . . . . . Piercing . | . . . . . . Highest Corruption . | . . . . . . Average Corruption . | . . . . . . Corruption Purged . | . . . . . . Corruption Blocked . | . . . . . . Overload Shots . | . . . . . . Overflow Damage 51 | . . 48 . . 3 Projectiles 7 | . . 7 . . . Explosions 44 | . . 41 . . 3 Melee . | . . . . . . Knockbacks 18 | . . 10 7 . 1 Impact . | . . . . . . Kinetic 14 | . . 7 6 . 1 Secondary 4 | . . 3 1 . . Self-Inflicted Damage 152 | . . 48 . . 104 Shots 5 | . . 2 . . 3 Rammed . | . . . . . . Targets Rammed . | . . . . . . Kicked . | . . . . . . Crushed . | . . . . . . Highest Temperature 102 | . 36 102 60 . 93 Average Temperature 25 | . 21 27 18 . 48 Received Heat Transfer 459 | . 54 228 24 . 153 Siege Activations . | . . . . . . Martial Activations . | . . . . . . Shielding Activations . | . . . . . . Robots Disrupted . | . . . . . . Combat Hostiles . | . . . . . . Robots Corrupted 1 | . . 1 . . . Combat Hostiles 1 | . . 1 . . . Parts Fried 2 | . . 2 . . . Impact Corruptions 1 | . . 1 . . . Robots Melted . | . . . . . . Combat Hostiles . | . . . . . . Parts Melted . | . . . . . . Heat Transferred . | . . . . . . Parts Sabotaged . | . . . . . . Parts Stolen . | . . . . . . Parts Stripped . | . . . . . . Power Chain Reactions . | . . . . . . Alert | -11 -10 -9 -9 -7 -7 ------- Run | Yrd Mat Mat Min Zio Dee Maximum Alert Level 2 | . . 2 1 . . Low Security (%) 37 | 100 100 36 . . . Level 1 56 | . . 46 100 . . Level 2 6 | . . 16 . . . Level 3 . | . . . . . . Level 4 . | . . . . . . Level 5 . | . . . . . . High Security . | . . . . . . Max Security . | . . . . . . Peak Influence 627 | 20 60 627 392 . . Initial 238 | . . 10 238 . . Average 222 | 3 17 257 316 . . Influence Increases 1542 | 30 162 923 427 . . Destroy 0b10 Robot/C 860 | . 60 560 240 . . Destroy 0b10 Robot/NC 145 | 30 20 50 45 . . Destroy Leader 198 | . 26 132 40 . . Allied During Kill 42 | . . . 42 . . Successful Hack 33 | . 25 8 . . . Select Force Hacks 60 | . 30 30 . . . Disable Machine 60 | . . 30 30 . . Destroy Structure 114 | . 1 83 30 . . Partial Spotted 15 | . . 15 . . . Lose Combat Pursuer 15 | . . 15 . . . Influence Decreases 1542 | 30 137 337 729 309 . Entered New Map 697 | . . 15 373 309 . Time Decay 825 | 30 137 302 356 . . Lost Part 20 | . . 20 . . . Squads Dispatched 6 | . 2 4 . . . Investigation 5 | . 1 4 . . . Extermination . | . . . . . . Reinforcement 1 | . 1 . . . . Assault . | . . . . . . Garrison . | . . . . . . Intercept . | . . . . . . Searches Triggered . | . . . . . . Construction Impeded . | . . . . . . Haulers Reinforced . | . . . . . . Active Scanning Responses . | . . . . . . Cargo Convoy Interrupts . | . . . . . . Stealth | -11 -10 -9 -9 -7 -7 --------- Run | Yrd Mat Mat Min Zio Dee Distress Signals 5 | . 1 4 . . . Communications Jammed . | . . . . . . Distress Signals . | . . . . . . Times Spotted 68 | . 8 34 12 . 14 Peak Tracking Total 7 | . 2 7 4 . 5 Tactical Retreats 1 | . . 1 . . . Traps | -11 -10 -9 -9 -7 -7 ------- Run | Yrd Mat Mat Min Zio Dee Traps Triggered 1 | . . 1 . . . Indirectly . | . . . . . . Trap Hack Attempts . | . . . . . . Triggered . | . . . . . . Disarmed . | . . . . . . Reprogrammed . | . . . . . . Reused 5 | . . . . . 5 Traps Extracted . | . . . . . . Installed 5 | . . . . . 5 Triggered . | . . . . . . Most Traps Carried 5 | . . . 5 5 5 Machines | -11 -10 -9 -9 -7 -7 ---------- Run | Yrd Mat Mat Min Zio Dee Machines Disabled 8 | . . 3 2 3 . Max in Single Turn 2 | . . 2 1 1 . Machines Repaired . | . . . . . . Machines Dismantled 3 | . . . . 3 . Machines Sabotaged . | . . . . . . Overloaded Fab Kills . | . . . . . . Hacking | -11 -10 -9 -9 -7 -7 --------- Run | Yrd Mat Mat Min Zio Dee Machines Accessed 9 | . 4 5 . . . Terminals 5 | . 2 3 . . . Fabricators . | . . . . . . Repair Stations . | . . . . . . Recycling Units 3 | . 2 1 . . . Scanalyzers 1 | . . 1 . . . Garrison Access . | . . . . . . Total Hacks 28 | . 11 17 . . . Successful 10 | . 6 4 . . . Failed 18 | . 5 13 . . . Catastrophic 3 | . . 3 . . . Database Lockouts . | . . . . . . Manual 19 | . 4 13 . 2 . Terminals 19 | . 6 13 . . . Fabricators . | . . . . . . Repair Stations . | . . . . . . Recycling Units 7 | . 5 2 . . . Scanalyzers 2 | . . 2 . . . Garrison Access . | . . . . . . Terminal Hacks 4 | . 3 1 . . . Level Access Points 1 | . 1 . . . . Branch Access Points 2 | . 1 1 . . . Registered Components 1 | . 1 . . . . Fabricator Hacks . | . . . . . . Repair Station Hacks . | . . . . . . Recycling Unit Hacks 1 | . 1 . . . . Retrieve Components 1 | . 1 . . . . Scanalyzer 2 | . . 2 . . . Insert Component 1 | . . 1 . . . Analyze 1 | . . 1 . . . Garrison Access Hacks . | . . . . . . Unauthorized Hacks 3 | . 2 1 . . . Terminals . | . . . . . . Fabricators . | . . . . . . Repair Stations . | . . . . . . Recycling Units 3 | . 2 1 . . . Recyclers 1 | . 1 . . . . Tunnel 2 | . 1 1 . . . Scanalyzers . | . . . . . . Garrison Access . | . . . . . . Data Cores Recovered . | . . . . . . Used . | . . . . . . Hacking Detections 8 | . 3 5 . . . Full Trace Events 3 | . 1 2 . . . Feedback Events . | . . . . . . Feedback Blocked . | . . . . . . Robot Schematics Acquired 3 | . . . . 3 . Robots Built . | . . . . . . Authchips . | . . . . . . Time . | . . . . . . Total Robot Build Rating . | . . . . . . Part Schematics Acquired 16 | . . 1 . 15 . Parts Built . | . . . . . . Authchips . | . . . . . . Time . | . . . . . . Total Part Build Rating . | . . . . . . Parts Repaired . | . . . . . . Time . | . . . . . . Parts Recycled . | . . . . . . Recycled Matter . | . . . . . . Retrieved Matter . | . . . . . . Retrieved Components 2 | . 2 . . . . Parts Scanalyzed 1 | . . 1 . . . Part Schematics Acquired 1 | . . 1 . . . Parts Damaged . | . . . . . . Bothacking | -11 -10 -9 -9 -7 -7 ------------ Run | Yrd Mat Mat Min Zio Dee Used RIF Installer . | . . . . . . Robots Hacked . | . . . . . . Non-combat . | . . . . . . Combat . | . . . . . . Robot Hacks Applied . | . . . . . . Relay Couplers Released . | . . . . . . Fabnet Peak Effective % . | . . . . . . Robots Rewired . | . . . . . . Allies Hacked . | . . . . . . Hacks Repelled . | . . . . . . Allies | -11 -10 -9 -9 -7 -7 -------- Run | Yrd Mat Mat Min Zio Dee Total Allies 9 | . . . 3 6 . Largest Group 6 | . . . 3 6 2 Highest-Rated Group 347 | . . . 76 347 192 Highest-Rated Ally 96 | . . . 31 96 96 Total Orders . | . . . . . . Ally Attacks 44 | . . . 9 . 35 Total Damage 833 | . . . 84 . 749 Kills 4 | . . . 1 . 3 Allies Corrupted . | . . . . . . Allies Melted . | . . . . . . Intel | -11 -10 -9 -9 -7 -7 ------- Run | Yrd Mat Mat Min Zio Dee Active Infowar (turns) 2921 | 73 364 331 672 1481 . Structural 1458 | . . . 672 786 . Seismic 1463 | 73 364 331 . 695 . Robot Analysis Total . | . . . . . . Derelict Logs Recovered 3 | . . . 3 . . Drone Launches . | . . . . . . Drone Recoveries . | . . . . . . Exploration | -11 -10 -9 -9 -7 -7 ------------- Run | Yrd Mat Mat Min Zio Dee Turns Passed 4371 | 126 364 763 808 1823 487 Spaces Moved 3142 | 80 253 402 683 1387 337 Core 17 | 17 . . . . . Treads . | . . . . . . Legs . | . . . . . . Wheels 3125 | 63 253 402 683 1387 337 Hover . | . . . . . . Flight . | . . . . . . Fastest Speed 50 | 50 95 95 95 105 110 Average Speed 114 | 83 108 123 97 120 123 Slowest Speed 170 | 100 110 140 110 170 125 Overloaded Moves . | . . . . . . Propulsion Burnouts . | . . . . . . Robots Hopped . | . . . . . . Potential Cave-ins . | . . . . . . Cave-ins Triggered . | . . . . . . Exploration Rate (%) 56 | 4 45 44 99 91 58 Regions Visited 5 Branch Regions 3 Pre-discovered Areas 4 | . 1 1 1 1 . Known Exits Taken 3 | . 1 1 1 . . Unknown Exits Taken 2 | 1 . . . 1 . Scrap Searched 4 | . . . 1 3 . Spaces Dug 13 | . . 7 6 . . Terrain Destroyed 162 | . . 85 35 . 42 Melee . | . . . . . . Projectile 31 | . . 17 12 . 2 AOE 131 | . . 68 23 . 40 Terrain Rammed . | . . . . . . Walls Destroyed . | . . . . . . Machines Disabled . | . . . . . . Actions | -11 -10 -9 -9 -7 -7 --------- Run | Yrd Mat Mat Min Zio Dee Total 3605 | 110 306 535 775 1487 392 Wait 127 | . 7 17 37 42 24 Move 3137 | 79 252 401 682 1386 337 Hop . | . . . . . . Pick Up 41 | 8 15 8 7 3 . Fast Attach 29 | 7 1 8 2 11 . Attach 10 | . . 2 1 2 5 Detach . | . . . . . . Swap 25 | 1 1 14 7 1 1 Drop 56 | 2 9 14 11 15 5 Fire 148 | 13 21 71 28 . 15 Melee . | . . . . . . Ram . | . . . . . . Kick . | . . . . . . Crush . | . . . . . . Escape Stasis . | . . . . . . Rewire . | . . . . . . Trap 5 | . . . . . 5 Miscellaneous 27 | . . . . 27 . Route ------- -11/Scrapyard -10/Materials (discovered 5 exits: *Mat x3 / *Min x2) -9/Materials (discovered 2 exits: *Mat / *Min) -9/Mines (discovered 3 exits: *Mat x2 / *Zio) -7/Zion (discovered 2 exits: [*Dee] / *Pro) -7/Deep Caves History --------- Turn | Location | Event 3 | -11/Scrapyard | Discovered new exit (range 16) 127 | -11/Scrapyard | Entered Materials 309 | -10/Materials | Discovered new exit (range 6) 326 | -10/Materials | Build established: Mutant 455 | -10/Materials | Identified exit to Mines 455 | -10/Materials | Identified exit to Materials 491 | -10/Materials | Entered another Materials area 491 | -9/Materials | Evolved 2 slots: Utility x2 807 | -9/Materials | Destroyed 7 combat bots 1010 | -9/Materials | Discovered new exit (range 10) 1031 | -9/Materials | Identified exit to Materials 1174 | -9/Materials | Discovered new exit (range 10) 1184 | -9/Materials | Identified exit to Mines 1254 | -9/Materials | Entered Mines 1334 | -9/Mines | Learned location of Zion (-7) 1338 | -9/Mines | Discovered exit to Materials (range 12) 1573 | -9/Mines | Received a Mining Laser from a helpful Derelict 1660 | -9/Mines | A weapon hastily lodged in a ceiling crevice suddenly fell to the ground 1686 | -9/Mines | A Derelict revealed a hidden shortcut to a safe place 1708 | -9/Mines | Identified exit to Zion 1778 | -9/Mines | Found a hidden stash of uninstalled traps 1785 | -9/Mines | Learned location of 1 exit from Lower Caves 2062 | -9/Mines | Entered Zion 2062 | -7/Zion | Accompanied by 2 allies 2085 | -7/Zion | Given A8's code to call for help 2112 | -7/Zion | Led the pair of lost Derelicts to a safe place 2194 | -7/Zion | Discovered new exit (range 16) 2208 | -7/Zion | Identified exit to Proximity Caves 2848 | -7/Zion | Found Prototype Device 2848 | -7/Zion | Identified Bomb Factory No. 2 2939 | -7/Zion | Received a visual enhancement algorithm 2941 | -7/Zion | Ran a visual enhancement algorithm 3282 | -7/Zion | Enhanced Grunt warped into view, answering call for help 3286 | -7/Zion | Enhanced Grunt warped into view, answering call for help 3417 | -7/Zion | Met Imprinter 3438 | -7/Zion | Imprinted 3441 | -7/Zion | Declared Zion's savior 3570 | -7/Zion | Found Prototype Processor 3570 | -7/Zion | Identified Exp. Terrain Scan Processor 3574 | -7/Zion | Found Prototype Processor 3574 | -7/Zion | Identified Exp. Armor Integrity Analyzer 3576 | -7/Zion | Found Prototype Processor 3576 | -7/Zion | Identified Exp. Targeting Computer 3581 | -7/Zion | Found Prototype Processor 3581 | -7/Zion | Identified Exp. Target Analyzer 3853 | -7/Zion | Discovered new exit (range 5) 3856 | -7/Zion | Saw the warning signs outside the Deep Caves entrance 3885 | -7/Zion | Entered Deep Caves 3885 | -7/Deep Caves | Accompanied by 6 allies 3887 | -7/Deep Caves | Met 5H-AD0 3950 | -7/Deep Caves | Z-Facility disabled 3966 | -7/Deep Caves | Attacked by Z-Imprinter 3970 | -7/Deep Caves | Destroyed Z-Imprinter 4308 | -7/Deep Caves | Core integrity fell below 50% 4328 | -7/Deep Caves | Spotted AG-91259 4358 | -7/Deep Caves | Core integrity fell below 20% 4359 | -7/Deep Caves | Lost 5 parts (2n1u2w) 4372 | -7/Deep Caves | Destroyed by AG-91259 with Assembled Focal Cannon Last Messages --------------- 04356_ AG-91259 suffers critical hit (Destroy). 04356_ Destroyed Prototype Energy Cannon. 04356_ HV Slug penetrates Wall. 04357_ AG-91259 GOLEM Unit beginning Prototype Energy Cannon integration. 04362_ HV Slug penetrates AG-91259. 04362_ AG-91259 suffers critical hit (Destroy). 04362_ Destroyed Prototype Leg. 04362_ AG-91259 knocked back. 04362_ HV Slug penetrates AG-91259. 04363_ Rocket Launcher destroyed. 04363_ Wheel destroyed. 04365_ HV Slug penetrates AG-91259. 04365_ AG-91259 suffers critical hit (Destroy). 04365_ Destroyed Prototype Energy Cannon. 04365_ HV Slug penetrates Wall. 04369_ HV Slug penetrates AG-91259. 04369_ AG-91259 suffers critical hit (Destroy). 04369_ Destroyed Prototype Reactor. 04370_ Bore Cannon destroyed. Map ----- +----------------------------------------------------+ | ?????????????????????????????????????????????????? | | ???????????????????????????????????????? #??????? | | ???????????????????????????????????????? #??????? | | ???????????????????????????????????????? #??????? | | ???????????????????? ????????????????? #??????? | | ??????????????????? ??????????????### #??????? | | ??????????????????? ??##?????????## #??????? | | ???????????????????# ?? ?????????# ???????? | | ???????????????????# #?? #?????????# #???????? | | ???????????????????# #?? ##???????## #???????? | | ????????????###????# ### ##??????# ##??????? | | ???????????## #???# ## #??????? #??????? | | ???????????# #### ;# #???????# #??????? | | ???????????# # #???????## ##?????? | | ????????????# #???????## ##### | | ???????? ????# ######### | | ?????? ????# ## ## | | ??? ???## ####### | | ? ???# ## ##??#### | | ??# ## #??## | | = ??# % ### ### #### | | ! ??## ^## % ##?####?# | | ??## ### G ##???????########## | | ?## ### ##???????????###???## | | ! ?# ##?# #???####??### ##???# | | ## ^##?# @ #???## #### #???? | | [ ! ## #### #?## ## #???? | | ! ## # ### #????? | | ### #;## ## #?????? | | [ ####### ##?### ######## | | ^ #???# ###"" | | [ #???# ## #""" " | | ##???# #### ## "" | | ####### ##???# #??## " | | #????? #####???# #???# | | ##????? ##???????# #???## #### | | # # ???????###????????# ????#######?# | | ## ?# ## #??????????????????# ????????????## | | ?#??#??##???????????????????## #####????????????# | | ?????????????????????????????###?????????????????? | | ?????????????????????????????????????????????????? | | | | | | | | | | | | | | | | | | | +----------------------------------------------------+ Best States ------------- Heat Dissipation 28 Energy Generation 14 Energy Capacity 280 Matter Stores 300 Matter Capacity 300 Sight Range 16 Terrain Scan Density 1010 Armor Coverage 150 Evasion (%) 50 Targeting Accuracy 5 Target Analysis 10 Armor Integrity Analysis 50 Recoil Reduction 1 Item Schematics ----------------- System Shield | -9/Materials | Scanalyzed Imp. Field Recycling Unit | -7/Zion | Archive Adv. Sensor Array | -7/Zion | Archive Recalibrator | -7/Zion | Archive Imp. Thermal Generator | -7/Zion | Archive Remote Datajack | -7/Zion | Archive Force Field | -7/Zion | Archive Plasma Cannon | -7/Zion | Archive Antigrav System | -7/Zion | Archive Imp. Remote Datajack | -7/Zion | Archive Adv. Terrain Scan Processor | -7/Zion | Archive Magnetic Acceleration Cannon | -7/Zion | Archive Dynamic Insulation System | -7/Zion | Archive Plasma Rifle | -7/Zion | Archive Fission Core | -7/Zion | Archive Gravmag System | -7/Zion | Archive Robot Schematics ------------------ K-01 Serf | -7/Zion | Archive L-41 Fighter | -7/Zion | Archive T-07 Excavator | -7/Zion | Archive Fabricated ------------ Nothing Repaired ---------- Nothing Alien Tech Used ----------------- None Achievements -------------- None Challenges ------------ None Game ------ Seed SpikedDisruptorExtractor Manual? 0 Play Time 00:32:16 Cumulative 253.6 hours Start 2025.06.10 @ 19:03:44 End 2025.06.10 @ 19:33:50 Sessions 1 Manual Loads 0 Difficulty Rogue Special Mode None Game No. 242 Rogue 242 Adventurer 0 Explorer 0 Win Type - Total 1 Types 1/0/0/0/0/0/0/0/0/0 Lore% 75 Gallery% 76 Achievement% 68 Wizard Run 0 Options --------- Layout 1 ASCII 0 Keyboard 0 Movement Numpad Keybinds 0 Fullscreen 1 Font 24/Smallcaps Map View 50x35 Zoom Use 0% Tactical HUD 1 Map Filters NONE Filters NONE Steam 1 RUN: 59c3a675-6e20-4af0-b1ab-c949beff01d3